fUST/lending_fUST_20250518
["ID","MTS","AMOUNT","RATE_DAILY","PERIOD"]
[361386759,1747540247485,-450.0,0.00014109,2]
[361386760,1747540247496,-450.0,0.00014109,2]
[361386761,1747540247506,-450.0,0.00014109,2]
[361386762,1747540247516,-450.0,0.00014109,2]
[361386763,1747540247528,-450.0,0.00014109,2]
[361386764,1747540247538,-450.0,0.00014109,2]
[361386765,1747540247549,-450.0,0.00014109,2]
[361386766,1747540247559,-500.0,0.00014114,2]
[361386767,1747540247569,-12636.50182523,0.00014143,2]
[361386768,1747540247582,-998.55070715,0.00014143,2]
[361386769,1747540247593,-160.0,0.00014143,2]
[361386770,1747540247603,-160.0,0.00014143,2]
[361386771,1747540247615,-422.53311782,0.00014143,2]
[361386772,1747540247625,-160.0,0.00014143,2]
[361386773,1747540247635,-160.0,0.00014143,2]
[361386774,1747540247646,-160.0,0.00014143,2]
[361386775,1747540247658,-212.32903618,0.00014145,2]
[361386776,1747540247668,-160.0,0.00014145,2]
[361386777,1747540247679,-160.0,0.00014145,2]
[361386779,1747540247690,-450.0,0.00014246,2]
[361386780,1747540247700,-450.0,0.00014246,2]
[361386781,1747540247710,-450.0,0.00014246,2]
[361386782,1747540247722,-450.0,0.00014246,2]
[361386783,1747540247733,-450.0,0.00014246,2]
[361386784,1747540247744,-450.0,0.00014246,2]
[361386785,1747540247755,-450.0,0.00014246,2]
[361386786,1747540247765,-172.06,0.00014246,2]
[361386787,1747540247776,-450.0,0.00014246,2]
[361386788,1747540247786,-340.28291869,0.00014246,2]
[361386789,1747540247796,-450.0,0.00014246,2]
[361386790,1747540247807,-450.0,0.00014246,2]
[361386791,1747540247817,-450.0,0.00014246,2]
[361386792,1747540247828,-450.0,0.00014246,2]
[361386793,1747540247838,-450.0,0.00014246,2]
[361386794,1747540247849,-208.0,0.00014246,2]
[361386795,1747540247859,-450.0,0.00014246,2]
[361386796,1747540247870,-326.38,0.00014246,2]
[361386797,1747540248042,-1411.59354202,0.00014314,2]
[361386798,1747540248061,-450.0,0.00014383,2]
[361386799,1747540248073,-450.0,0.00014383,2]
[361386800,1747540248082,-450.0,0.00014383,2]
[361386801,1747540248091,-576.63,0.00014383,2]
[361386802,1747540248101,-450.0,0.00014383,2]
[361386803,1747540248110,-450.0,0.00014383,2]
[361386804,1747540248119,-450.0,0.00014383,2]
[361386805,1747540248129,-450.0,0.00014383,2]
[361386806,1747540248138,-450.0,0.00014383,2]
[361386807,1747540248147,-450.0,0.00014383,2]
[361386808,1747540248157,-450.0,0.00014383,2]
[361386809,1747540248167,-450.0,0.00014383,2]
[361386810,1747540248176,-380.49373268,0.00014383,2]
[361386811,1747540248185,-450.0,0.00014383,2]
[361386812,1747540248194,-450.0,0.0001452,2]
[361386813,1747540248204,-450.0,0.0001452,2]
[361386814,1747540248213,-331.4,0.0001452,2]
[361386815,1747540248222,-450.0,0.0001452,2]
[361386816,1747540248231,-219.72,0.0001452,2]
[361386817,1747540248240,-450.0,0.0001452,2]
[361386818,1747540248250,-450.0,0.0001452,2]
[361386819,1747540248260,-450.0,0.0001452,2]
[361386820,1747540248269,-450.0,0.0001452,2]
[361386821,1747540248279,-272.61,0.0001452,2]
[361386822,1747540248288,-381.01,0.0001452,2]
[361386823,1747540248298,-450.0,0.0001452,2]
[361386824,1747540248307,-309.75,0.00014657,2]
[361386825,1747540248317,-580.45,0.00014657,2]
[361386826,1747540248325,-450.0,0.00014657,2]
[361386827,1747540248335,-198.76,0.00014657,2]
[361386828,1747540248344,-450.0,0.00014657,2]
[361386829,1747540248353,-450.0,0.00014657,2]
[361386830,1747540248363,-450.0,0.00014657,2]
[361386831,1747540248372,-450.0,0.00014657,2]
[361386832,1747540248382,-1411.59354202,0.00014728,2]
[361386833,1747540248391,-270.61,0.00014794,2]
[361386834,1747540248400,-450.0,0.00014794,2]
[361386835,1747540248410,-450.0,0.00014794,2]
[361386836,1747540248420,-450.0,0.00014794,2]
[361386837,1747540248430,-450.0,0.00014794,2]
[361386838,1747540248439,-500.0,0.00014857,2]
[361386839,1747540248449,-450.0,0.00014931,2]
[361386840,1747540248460,-450.0,0.00014931,2]
[361386841,1747540248470,-450.0,0.00014931,2]
[361386842,1747540248479,-450.0,0.00014931,2]
[361386843,1747540248488,-420.0,0.00015009,2]
[361386844,1747540248497,-450.0,0.00015068,2]
[361386845,1747540248507,-450.0,0.00015068,2]
[361386846,1747540248516,-450.0,0.00015068,2]
[361386847,1747540248526,-450.0,0.00015068,2]
[361386848,1747540248536,-1411.59354202,0.00015141,2]
[361386849,1747540248545,-450.0,0.00015205,2]
[361386850,1747540248556,-450.0,0.00015205,2]
[361386851,1747540248565,-450.0,0.00015205,2]
[361386852,1747540248578,-412.88,0.00015205,2]
[361386853,1747540248589,-450.0,0.00015342,2]
[361386854,1747540248598,-450.0,0.00015342,2]
[361386855,1747540248608,-450.0,0.00015342,2]
[361386856,1747540248617,-450.0,0.00015479,2]
[361386857,1747540248627,-450.0,0.00015479,2]
[361386858,1747540248636,-450.0,0.00015479,2]
[361386859,1747540248645,-1411.59354202,0.00015555,2]
[361386860,1747540248654,-450.0,0.00015616,2]
[361386861,1747540248663,-450.0,0.00015616,2]
[361386862,1747540248672,-450.0,0.00015616,2]
[361386863,1747540248681,-500.0,0.00015639,2]
[361386864,1747540248690,-296.137,0.00015753,2]
[361386865,1747540248700,-450.0,0.00015753,2]
[361386866,1747540248709,-450.0,0.00015753,2]
[361386867,1747540248719,-450.0,0.00015753,2]
[361386868,1747540248728,-450.0,0.0001589,2]
[361386869,1747540248737,-504.78,0.0001589,2]
[361386870,1747540248747,-450.0,0.0001589,2]
[361386871,1747540248755,-1411.59354202,0.00015969,2]
[361386872,1747540248765,-447.19,0.00016027,2]
[361386873,1747540248774,-450.0,0.00016027,2]
[361386874,1747540248783,-459.32386934,0.00016164,2]
[361386875,1747540248793,-1411.59354202,0.00016383,2]
[361386876,1747540248802,-500.0,0.0001642,2]
[361386877,1747540248812,-500.0,0.00016438,2]
[361386878,1747540248821,-510.0,0.00016438,2]
[361386879,1747540248830,-500.0,0.00016438,2]
[361386880,1747540248840,-500.0,0.00016438,2]
[361386881,1747540248850,-500.0,0.00016438,2]
[361386882,1747540248859,-500.0,0.00016438,2]
[361386883,1747540248868,-500.0,0.00016438,2]
[361386884,1747540248878,-587.0,0.00016449,2]
[361386885,1747540248887,-190.33978075,0.00016749,2]
[361386886,1747540248897,-1411.59354202,0.00016797,2]
[361386887,1747540248906,-1411.59354202,0.0001721,2]
[361386888,1747540248916,-500.0,0.00017241,2]
[361386889,1747540248926,-1411.59354202,0.00017624,2]
[361386890,1747540248935,-3000.0,0.00017941,2]
[361386891,1747540248944,-392.0,0.00018026,2]
[361386892,1747540248954,-1411.59354202,0.00018038,2]
[361386893,1747540248964,-195.69081559,0.00018104,2]
[361386894,1747540248983,-304.30918441,0.00018104,2]
[361386895,1747540248992,-155.171107,0.000182,2]
[361386896,1747540249002,-1411.59354202,0.00018452,2]
[361386897,1747540249011,-600.0,0.00018556,2]
[361386898,1747540249021,-601.57031888,0.00018749,2]
[361386899,1747540249030,-1411.59354202,0.00018866,2]
[361386900,1747540249039,-194.0,0.00019,3]
[361386901,1747540249049,-194.0,0.00019,4]
[361386902,1747540249058,-500.0,0.00019009,2]
[361386903,1747540249067,-3000.0,0.00019037,2]
[361386904,1747540249077,-155.0,0.00019178,2]
[361386905,1747540249087,-855.931096,0.00019178,2]
[361386906,1747540249096,-1531.9709601,0.00019232,2]
[361386907,1747540249106,-1411.59354202,0.00019279,2]
[361386908,1747540249115,-345.0,0.000193,2]
[361386909,1747540249124,-236.51228779,0.00019329,2]
[361386910,1747540249135,-21625.6063225,0.00019329,2]
[361386911,1747540249143,-499.999999,0.0001958,2]
[361386912,1747540249152,-1411.59354202,0.00019693,2]
[361386913,1747540249161,-179.2456987,0.00019699,2]
[361386914,1747540249170,-1474.58906156,0.000199,2]
[361386915,1747540419229,193.37439402,0.000273,120]
[361386937,1747541432544,-481.84569023,0.00013696,2]
[361386938,1747541432558,-605.45,0.00013696,2]
[361386939,1747541432571,-112.70430977,0.00013696,2]
[361386940,1747541432583,-273.12902731,0.00013697,2]
[361386941,1747541432620,-26.87097269,0.00013697,2]
[361386942,1747541432631,-300.0,0.00013697,2]
[361386943,1747541432641,-300.0,0.00013697,2]
[361386944,1747541432652,-300.0,0.00013697,2]
[361386945,1747541432662,-400.0,0.00013698,2]
[361386946,1747541432673,-400.0,0.00013698,2]
[361386947,1747541432684,-596.63782429,0.00013698,2]
[361386948,1747541432693,-450.0,0.00013698,2]
[361386949,1747541432705,-450.0,0.00013698,2]
[361386950,1747541432715,-450.0,0.00013698,2]
[361386951,1747541432726,-450.0,0.00013698,2]
[361386952,1747541432737,-450.0,0.00013698,2]
[361386953,1747541432748,-411.73762338,0.00013698,2]
[361386954,1747541432759,-450.0,0.00013698,2]
[361386955,1747541432770,-302.65781893,0.00013698,2]
[361386956,1747541432782,-340.10412152,0.00013698,2]
[361387021,1747541443712,-109.89587848,0.00013698,2]
[361387022,1747541443722,-450.0,0.00013698,2]
[361387023,1747541443731,-450.0,0.00013698,2]
[361387024,1747541443741,-450.0,0.00013698,2]
[361387025,1747541443750,-425.62125207,0.00013698,2]
[361387026,1747541443759,-450.0,0.00013698,2]
[361387027,1747541443769,-450.0,0.00013698,2]
[361387028,1747541443778,-450.0,0.00013698,2]
[361387029,1747541443787,-450.0,0.00013698,2]
[361387030,1747541443797,-450.0,0.00013698,2]
[361387031,1747541443807,-450.0,0.00013698,2]
[361387032,1747541443818,-450.0,0.00013698,2]
[361387033,1747541443827,-450.0,0.00013698,2]
[361387034,1747541443836,-450.0,0.00013698,2]
[361387035,1747541443846,-450.0,0.00013698,2]
[361387036,1747541443856,-95.07084781,0.00013698,2]
[361387051,1747541446748,-257.99777585,0.00013698,2]
[361387052,1747541446758,-450.0,0.00013698,2]
[361387053,1747541446767,-450.0,0.00013698,2]
[361387054,1747541446777,-450.0,0.00013698,2]
[361387055,1747541446787,-450.0,0.00013698,2]
[361387056,1747541446796,-450.0,0.00013698,2]
[361387057,1747541446805,-450.0,0.00013698,2]
[361387058,1747541446814,-450.0,0.00013698,2]
[361387059,1747541446823,-400.0,0.00013698,2]
[361387060,1747541446832,-450.0,0.00013698,2]
[361387061,1747541446841,-505.32046801,0.00013698,2]
[361387062,1747541446850,-450.0,0.00013698,2]
[361387063,1747541446859,-450.0,0.00013698,2]
[361387064,1747541446868,-450.0,0.00013698,2]
[361387065,1747541446878,-200.35583308,0.00013698,2]
[361387066,1747541446887,-577.13,0.00013698,2]
[361387067,1747541446896,-450.0,0.00013698,2]
[361387068,1747541446905,-450.0,0.00013698,2]
[361387069,1747541446914,-450.0,0.00013698,2]
[361387070,1747541446923,-588.0,0.00013698,2]
[361387071,1747541446932,-450.0,0.00013698,2]
[361387072,1747541446942,-450.0,0.00013698,2]
[361387073,1747541446950,-450.0,0.00013698,2]
[361387074,1747541446959,-450.0,0.00013698,2]
[361387075,1747541446968,-450.0,0.00013698,2]
[361387076,1747541446978,-486.68,0.00013698,2]
[361387077,1747541446989,-450.0,0.00013698,2]
[361387078,1747541446999,-280.41979953,0.00013698,2]
[361387079,1747541447008,-231.92,0.00013698,2]
[361387080,1747541447018,-450.0,0.00013698,2]
[361387081,1747541447026,-188.0,0.00013698,2]
[361387082,1747541447035,-400.0,0.00013698,2]
[361387083,1747541447044,-450.0,0.00013698,2]
[361387084,1747541447053,-450.0,0.00013698,2]
[361387085,1747541447063,-196.686884,0.00013699,2]
[361387086,1747541447072,-94.71843702,0.00013735,2]
[361387255,1747542071208,2229.75,0.00025471,30]
[361387268,1747542554939,267221.51429705,0.0001,2]
[361387283,1747542631900,-300.0,0.00012532,2]
[361387286,1747542631910,-300.0,0.00012532,2]
[361387288,1747542631921,-300.0,0.00012532,2]
[361387290,1747542631931,-1200.0,0.00012532,2]
[361387291,1747542631942,-300.0,0.00012532,2]
[361387292,1747542631952,-2425.01589593,0.00012533,2]
[361387293,1747542631964,-5393.03443292,0.00012533,2]
[361387337,1747542637707,-7735.22015655,0.00012533,2]
[361387339,1747542637717,-10000.0,0.00012677,2]
[361387341,1747542637726,-196.4464863,0.00012698,2]
[361387343,1747542637736,-298.6558789,0.00012732,2]
[361387344,1747542637745,-190.33978075,0.00013598,2]
[361387345,1747542637754,-288.01674988,0.00013598,2]
[361387347,1747542637764,-652.680384,0.00013618,2]
[361387349,1747542637774,-500.0,0.00013697,2]
[361387350,1747542637783,-500.0,0.00013697,2]
[361387352,1747542637793,-500.0,0.00013697,2]
[361387353,1747542637801,-188.93469548,0.00013697,2]
[361387354,1747542637811,-500.0,0.00013697,2]
[361387355,1747542637819,-500.0,0.00013697,2]
[361387356,1747542637829,-500.0,0.00013697,2]
[361387357,1747542637838,-194.69817253,0.00013697,2]
[361387358,1747542637850,-626.01783988,0.00013697,2]
[361387359,1747542637859,-500.0,0.00013697,2]
[361387360,1747542637868,-500.0,0.00013697,2]
[361387361,1747542637878,-500.0,0.00013697,2]
[361387362,1747542637887,-500.0,0.00013697,2]
[361387363,1747542637898,-500.0,0.00013697,2]
[361387364,1747542637907,-500.0,0.00013697,2]
[361387365,1747542637917,-500.0,0.00013697,2]
[361387366,1747542637926,-500.0,0.00013697,2]
[361387367,1747542637936,-500.0,0.00013697,2]
[361387368,1747542637947,-500.0,0.00013697,2]
[361387369,1747542637957,-500.0,0.00013697,2]
[361387370,1747542637966,-500.0,0.00013697,2]
[361387371,1747542637975,-500.0,0.00013697,2]
[361387372,1747542637984,-500.0,0.00013697,2]
[361387373,1747542637994,-500.0,0.00013697,2]
[361387374,1747542638004,-500.0,0.00013697,2]
[361387375,1747542638013,-500.0,0.00013697,2]
[361387376,1747542638024,-500.0,0.00013697,2]
[361387377,1747542638035,-500.0,0.00013697,2]
[361387378,1747542638046,-500.0,0.00013697,2]
[361387379,1747542638056,-500.0,0.00013697,2]
[361387380,1747542638068,-500.0,0.00013697,2]
[361387381,1747542638079,-450.0,0.00013698,2]
[361387382,1747542638089,-450.0,0.00013698,2]
[361387383,1747542638099,-409.26063339,0.00013698,2]
[361387384,1747542638280,-399.2099649,0.00013698,2]
[361387385,1747542638291,-450.0,0.00013698,2]
[361387386,1747542638300,-450.0,0.00013698,2]
[361387387,1747542638309,-450.0,0.00013698,2]
[361387388,1747542638318,-404.52479271,0.00013698,2]
[361387389,1747542638327,-566.35783747,0.00013698,2]
[361387390,1747542638336,-450.0,0.00013698,2]
[361387391,1747542638346,-450.0,0.00013698,2]
[361387392,1747542638355,-450.0,0.00013698,2]
[361387393,1747542638364,-450.0,0.00013698,2]
[361387394,1747542638373,-450.0,0.00013698,2]
[361387395,1747542638382,-450.0,0.00013698,2]
[361387396,1747542638391,-450.0,0.00013698,2]
[361387397,1747542638401,-450.0,0.00013698,2]
[361387398,1747542638411,-450.0,0.00013698,2]
[361387399,1747542638420,-341.83622171,0.00013698,2]
[361387400,1747542638429,-450.0,0.00013698,2]
[361387401,1747542638439,-450.0,0.00013698,2]
[361387402,1747542638448,-450.0,0.00013698,2]
[361387403,1747542638457,-450.0,0.00013698,2]
[361387404,1747542638466,-450.0,0.00013698,2]
[361387405,1747542638476,-450.0,0.00013698,2]
[361387406,1747542638485,-450.0,0.00013698,2]
[361387407,1747542638496,-450.0,0.00013698,2]
[361387408,1747542638505,-492.32,0.00013698,2]
[361387409,1747542638514,-450.0,0.00013698,2]
[361387410,1747542638524,-450.0,0.00013698,2]
[361387411,1747542638533,-450.0,0.00013698,2]
[361387412,1747542638542,-450.0,0.00013698,2]
[361387413,1747542638552,-450.0,0.00013698,2]
[361387414,1747542638561,-403.37506686,0.00013698,2]
[361387415,1747542638571,-400.0,0.00013698,2]
[361387416,1747542638580,-281.62774334,0.00013698,2]
[361387417,1747542638589,-450.0,0.00013698,2]
[361387418,1747542638598,-49.93869788,0.00013698,2]
[361387419,1747542638722,-400.06130212,0.00013698,2]
[361387420,1747542638732,-450.0,0.00013698,2]
[361387421,1747542638741,-450.0,0.00013698,2]
[361387422,1747542638750,-299.64751024,0.00013698,2]
[361387423,1747542638759,-450.0,0.00013698,2]
[361387424,1747542638769,-450.0,0.00013698,2]
[361387425,1747542638778,-450.0,0.00013698,2]
[361387426,1747542638787,-400.0,0.00013698,2]
[361387427,1747542638796,-450.0,0.00013698,2]
[361387428,1747542638805,-450.0,0.00013698,2]
[361387429,1747542638814,-400.0,0.00013698,2]
[361387430,1747542638823,-400.0,0.00013698,2]
[361387431,1747542638832,-450.0,0.00013698,2]
[361387432,1747542638841,-450.0,0.00013698,2]
[361387433,1747542638854,-547.11080334,0.00013698,2]
[361387434,1747542638863,-400.0,0.00013698,2]
[361387435,1747542638873,-450.0,0.00013698,2]
[361387436,1747542638882,-331.76425225,0.00013698,2]
[361387437,1747542638893,-290.16080414,0.00013698,2]
[361387438,1747542638903,-400.0,0.00013698,2]
[361387439,1747542638915,-400.0,0.00013698,2]
[361387440,1747542638924,-450.0,0.00013698,2]
[361387441,1747542638934,-400.0,0.00013698,2]
[361387442,1747542638946,-450.0,0.00013698,2]
[361387443,1747542638955,-450.0,0.00013698,2]
[361387444,1747542638965,-400.0,0.00013698,2]
[361387445,1747542638974,-450.0,0.00013698,2]
[361387446,1747542638983,-400.0,0.00013698,2]
[361387447,1747542638992,-353.95742989,0.00013698,2]
[361387448,1747542639004,-96.04257011,0.00013698,2]
[361387449,1747542639013,-450.0,0.00013698,2]
[361387450,1747542639022,-450.0,0.00013698,2]
[361387451,1747542639031,-450.0,0.00013698,2]
[361387452,1747542639040,-450.0,0.00013698,2]
[361387453,1747542639049,-450.0,0.00013698,2]
[361387454,1747542639058,-450.0,0.00013698,2]
[361387455,1747542639067,-450.0,0.00013698,2]
[361387456,1747542639076,-450.0,0.00013698,2]
[361387457,1747542639085,-450.0,0.00013698,2]
[361387458,1747542639094,-448.38233123,0.00013698,2]
[361387459,1747542639106,-1.61766877,0.00013698,2]
[361387460,1747542639115,-450.0,0.00013698,2]
[361387461,1747542639125,-450.0,0.00013698,2]
[361387462,1747542639134,-400.0,0.00013698,2]
[361387463,1747542639143,-450.0,0.00013698,2]
[361387464,1747542639152,-450.0,0.00013698,2]
[361387465,1747542639161,-450.0,0.00013698,2]
[361387466,1747542639171,-450.0,0.00013698,2]
[361387467,1747542639180,-450.0,0.00013698,2]
[361387468,1747542639189,-450.0,0.00013698,2]
[361387469,1747542639198,-450.0,0.00013698,2]
[361387470,1747542639207,-450.0,0.00013698,2]
[361387471,1747542639217,-450.0,0.00013698,2]
[361387472,1747542639225,-450.0,0.00013698,2]
[361387473,1747542639234,-450.0,0.00013698,2]
[361387474,1747542639243,-450.0,0.00013698,2]
[361387475,1747542639252,-450.0,0.00013698,2]
[361387476,1747542639262,-450.0,0.00013698,2]
[361387477,1747542639271,-450.0,0.00013698,2]
[361387478,1747542639279,-450.0,0.00013698,2]
[361387479,1747542639289,-450.0,0.00013698,2]
[361387480,1747542639300,-450.0,0.00013698,2]
[361387481,1747542639311,-450.0,0.00013698,2]
[361387482,1747542639322,-450.0,0.00013698,2]
[361387483,1747542639331,-450.0,0.00013698,2]
[361387484,1747542639341,-393.43881075,0.00013698,2]
[361387518,1747542642876,-56.56118925,0.00013698,2]
[361387519,1747542642886,-450.0,0.00013698,2]
[361387520,1747542642895,-544.94,0.00013698,2]
[361387521,1747542642907,-450.0,0.00013698,2]
[361387522,1747542642916,-450.0,0.00013698,2]
[361387523,1747542642925,-450.0,0.00013698,2]
[361387524,1747542642936,-450.0,0.00013698,2]
[361387525,1747542642948,-450.0,0.00013698,2]
[361387526,1747542642957,-450.0,0.00013698,2]
[361387527,1747542642966,-450.0,0.00013698,2]
[361387528,1747542642975,-450.0,0.00013698,2]
[361387529,1747542642984,-450.0,0.00013698,2]
[361387530,1747542642993,-450.0,0.00013698,2]
[361387531,1747542643002,-450.0,0.00013698,2]
[361387532,1747542643011,-450.0,0.00013698,2]
[361387533,1747542643020,-450.0,0.00013698,2]
[361387534,1747542643029,-151.0,0.00013698,2]
[361387535,1747542643039,-450.0,0.00013698,2]
[361387536,1747542643048,-450.0,0.00013698,2]
[361387537,1747542643057,-450.0,0.00013698,2]
[361387538,1747542643066,-450.0,0.00013698,2]
[361387539,1747542643075,-450.0,0.00013698,2]
[361387540,1747542643084,-450.0,0.00013698,2]
[361387541,1747542643094,-450.0,0.00013698,2]
[361387542,1747542643106,-450.0,0.00013698,2]
[361387543,1747542643118,-450.0,0.00013698,2]
[361387544,1747542643128,-450.0,0.00013698,2]
[361387545,1747542643138,-450.0,0.00013698,2]
[361387546,1747542643150,-450.0,0.00013698,2]
[361387547,1747542643159,-450.0,0.00013698,2]
[361387548,1747542643168,-450.0,0.00013698,2]
[361387549,1747542643177,-450.0,0.00013698,2]
[361387550,1747542643187,-450.0,0.00013698,2]
[361387551,1747542643198,-450.0,0.00013698,2]
[361387552,1747542643209,-450.0,0.00013698,2]
[361387553,1747542643218,-450.0,0.00013698,2]
[361387554,1747542643228,-450.0,0.00013698,2]
[361387555,1747542643240,-450.0,0.00013698,2]
[361387556,1747542643251,-450.0,0.00013698,2]
[361387557,1747542643261,-450.0,0.00013698,2]
[361387558,1747542643271,-450.0,0.00013698,2]
[361387559,1747542643282,-450.0,0.00013698,2]
[361387560,1747542643291,-450.0,0.00013698,2]
[361387561,1747542643303,-450.0,0.00013698,2]
[361387562,1747542643316,-450.0,0.00013698,2]
[361387563,1747542643325,-450.0,0.00013698,2]
[361387564,1747542643334,-546.74,0.00013698,2]
[361387565,1747542643345,-450.0,0.00013698,2]
[361387566,1747542643354,-450.0,0.00013698,2]
[361387567,1747542643363,-497.87,0.00013698,2]
[361387568,1747542643374,-450.0,0.00013698,2]
[361387569,1747542643383,-450.0,0.00013698,2]
[361387570,1747542643393,-450.0,0.00013698,2]
[361387571,1747542643403,-450.0,0.00013698,2]
[361387572,1747542643412,-450.0,0.00013698,2]
[361387573,1747542643421,-450.0,0.00013698,2]
[361387574,1747542643430,-450.0,0.00013698,2]
[361387575,1747542643439,-450.0,0.00013698,2]
[361387576,1747542643449,-450.0,0.00013698,2]
[361387577,1747542643458,-471.04,0.00013698,2]
[361387578,1747542643468,-450.0,0.00013698,2]
[361387579,1747542643477,-450.0,0.00013698,2]
[361387580,1747542643487,-450.0,0.00013698,2]
[361387581,1747542643497,-450.0,0.00013698,2]
[361387582,1747542643507,-450.0,0.00013698,2]
[361387583,1747542643517,-450.0,0.00013698,2]
[361387584,1747542643526,-450.0,0.00013698,2]
[361387585,1747542643537,-450.0,0.00013698,2]
[361387586,1747542643546,-450.0,0.00013698,2]
[361387587,1747542643556,-450.0,0.00013698,2]
[361387588,1747542643566,-450.0,0.00013698,2]
[361387589,1747542643584,-450.0,0.00013698,2]
[361387590,1747542643595,-450.0,0.00013698,2]
[361387591,1747542643605,-450.0,0.00013698,2]
[361387592,1747542643615,-450.0,0.00013698,2]
[361387593,1747542643625,-450.0,0.00013698,2]
[361387594,1747542643634,-450.0,0.00013698,2]
[361387595,1747542643644,-450.0,0.00013698,2]
[361387596,1747542643653,-450.0,0.00013698,2]
[361387597,1747542643663,-450.0,0.00013698,2]
[361387598,1747542643673,-450.0,0.00013698,2]
[361387599,1747542643682,-450.0,0.00013698,2]
[361387600,1747542643692,-450.0,0.00013698,2]
[361387601,1747542643701,-450.0,0.00013698,2]
[361387602,1747542643711,-450.0,0.00013698,2]
[361387603,1747542643721,-500.0,0.00013698,2]
[361387604,1747542643730,-196.337772,0.00013699,2]
[361387605,1747542643740,-210.243019,0.00013699,2]
[361387606,1747542643750,-155.777218,0.00013699,2]
[361387607,1747542643759,-500.0,0.00013699,2]
[361387608,1747542643769,-500.0,0.00013699,2]
[361387609,1747542643778,-500.0,0.00013699,2]
[361387610,1747542643787,-500.0,0.00013699,2]
[361387611,1747542643797,-500.0,0.00013699,2]
[361387612,1747542643806,-500.0,0.00013699,2]
[361387613,1747542643815,-500.0,0.00013699,2]
[361387614,1747542643825,-500.0,0.00013699,2]
[361387615,1747542643836,-500.0,0.00013699,2]
[361387616,1747542643845,-500.0,0.00013699,2]
[361387617,1747542643858,-500.0,0.00013699,2]
[361387618,1747542643867,-500.0,0.00013699,2]
[361387619,1747542643876,-500.0,0.00013699,2]
[361387620,1747542643885,-500.0,0.00013699,2]
[361387621,1747542643896,-500.0,0.00013699,2]
[361387622,1747542643906,-500.0,0.00013699,2]
[361387623,1747542643916,-500.0,0.00013699,2]
[361387624,1747542643925,-500.0,0.00013699,2]
[361387625,1747542643937,-500.0,0.00013699,2]
[361387626,1747542643948,-500.0,0.00013699,2]
[361387627,1747542643958,-496.6135205,0.00013699,2]
[361387628,1747542643970,-500.0,0.00013699,2]
[361387629,1747542643980,-500.0,0.00013699,2]
[361387630,1747542643990,-500.0,0.00013699,2]
[361387631,1747542644000,-500.0,0.00013699,2]
[361387632,1747542644010,-500.0,0.00013699,2]
[361387633,1747542644021,-500.0,0.00013699,2]
[361387634,1747542644032,-500.0,0.00013699,2]
[361387635,1747542644043,-500.0,0.00013699,2]
[361387636,1747542644054,-500.0,0.00013699,2]
[361387637,1747542644064,-500.0,0.00013699,2]
[361387638,1747542644075,-500.0,0.00013699,2]